[Event "*** SCC Grand Prix: Titled Tuesday Blitz"]
[Site "Chess.com"]
[Date "2020.09.29"]
[Round "2"]
[White "ChessAurochs"]
[Black "malakismayil"]
[Result "1-0"]
[WhiteElo "2574"]
[BlackElo "2325"]
[TimeControl "180+1"]
[EndTime "10:18:26 PDT"]
[Termination "ChessAurochs won by resignation"]

1. e4 {[%clk 0:03:00.9]} 1... e5 {[%clk 0:02:59.3]} 2. Nf3 {[%clk 0:03:00.9]}
2... Nc6 {[%clk 0:02:59.2]} 3. Bc4 {[%clk 0:03:00.5]} 3... Bc5 {[%clk
0:02:58.7]} 4. c3 {[%clk 0:02:57.2]} 4... Nf6 {[%clk 0:02:57.4]} 5. d3 {[%clk
0:02:57.3]} 5... d6 {[%clk 0:02:54.5]} 6. O-O {[%clk 0:02:55]} 6... O-O {[%clk
0:02:53.3]} 7. Bb3 {[%clk 0:02:53.6]} 7... h6 {[%clk 0:02:51.1]} 8. h3 {[%clk
0:02:50.2]} 8... Bb6 {[%clk 0:02:50.6]} 9. Nbd2 {[%clk 0:02:47.1]} 9... Qe7
{[%clk 0:02:40.6]} 10. Nc4 {[%clk 0:02:40.8]} 10... Be6 {[%clk 0:02:25.9]} 11.
Ne3 {[%clk 0:02:19.7]} 11... Rad8 {[%clk 0:01:43.5]} 12. Nd5 {[%clk 0:01:02.9]}
12... Bxd5 {[%clk 0:01:38.4]} 13. exd5 {[%clk 0:01:03.8]} 13... Na5 {[%clk
0:01:25.3]} 14. Re1 {[%clk 0:01:03.9]} 14... Nxb3 {[%clk 0:01:17.6]} 15. Qxb3
{[%clk 0:01:03.9]} 15... Qd7 {[%clk 0:01:17.5]} 16. a4 {[%clk 0:01:01.9]} 16...
a5 {[%clk 0:01:16.1]} 17. Be3 {[%clk 0:00:53.5]} 17... Bxe3 {[%clk 0:01:13.9]}
18. fxe3 {[%clk 0:00:54.4]} 18... b6 {[%clk 0:01:13.8]} 19. e4 {[%clk
0:00:54.8]} 19... Nh5 {[%clk 0:01:13.7]} 20. d4 {[%clk 0:00:49.8]} 20... Rde8
{[%clk 0:01:09]} 21. dxe5 {[%clk 0:00:49.5]} 21... dxe5 {[%clk 0:01:09.9]} 22.
Rad1 {[%clk 0:00:49.6]} 22... Qd6 {[%clk 0:01:08.3]} 23. Nd2 {[%clk 0:00:48.6]}
23... Qc5+ {[%clk 0:01:01.6]} 24. Kh2 {[%clk 0:00:48.5]} 24... Nf4 {[%clk
0:00:55.8]} 25. Rf1 {[%clk 0:00:32.7]} 25... h5 {[%clk 0:00:54.4]} 26. Qc4
{[%clk 0:00:28.2]} 26... Qe3 {[%clk 0:00:41.3]} 27. Rf3 {[%clk 0:00:27.3]} 27...
Qe2 {[%clk 0:00:33.4]} 28. Qxe2 {[%clk 0:00:27]} 28... Nxe2 {[%clk 0:00:34.3]}
29. g3 {[%clk 0:00:26.9]} 29... h4 {[%clk 0:00:32.2]} 30. gxh4 {[%clk
0:00:27.1]} 30... Nf4 {[%clk 0:00:31.9]} 31. Rg1 {[%clk 0:00:27.3]} 31... Kh7
{[%clk 0:00:30.1]} 32. Nc4 {[%clk 0:00:27.2]} 32... f5 {[%clk 0:00:22.8]} 33.
exf5 {[%clk 0:00:24.6]} 33... Rxf5 {[%clk 0:00:23.7]} 34. Rg5 {[%clk 0:00:24.4]}
34... g6 {[%clk 0:00:18.7]} 35. Rxf5 {[%clk 0:00:21.8]} 35... gxf5 {[%clk
0:00:19.6]} 36. d6 {[%clk 0:00:19.8]} 36... cxd6 {[%clk 0:00:17.7]} 37. Nxd6
{[%clk 0:00:20.7]} 37... Rd8 {[%clk 0:00:16.5]} 38. Nxf5 {[%clk 0:00:20.4]}
38... Rd2+ {[%clk 0:00:15.9]} 39. Kg1 {[%clk 0:00:20.6]} 39... Rg2+ {[%clk
0:00:14.7]} 40. Kf1 {[%clk 0:00:20.3]} 40... Rxb2 {[%clk 0:00:15.6]} 41. Re3
{[%clk 0:00:20.2]} 41... Kg6 {[%clk 0:00:09.7]} 42. Rxe5 {[%clk 0:00:18.2]}
42... Kf6 {[%clk 0:00:09.5]} 43. Re8 {[%clk 0:00:05.2]} 43... Kxf5 {[%clk
0:00:09]} 44. Rf8+ {[%clk 0:00:06.1]} 44... Ke4 {[%clk 0:00:08.6]} 45. Re8+
{[%clk 0:00:06.4]} 45... Kf3 {[%clk 0:00:08.4]} 46. h5 {[%clk 0:00:06.4]} 46...
Rb1+ {[%clk 0:00:03.8]} 47. Re1 {[%clk 0:00:06.9]} 47... Rb2 {[%clk 0:00:03.6]}
48. Re8 {[%clk 0:00:05.1]} 48... Rf2+ {[%clk 0:00:03.2]} 49. Ke1 {[%clk
0:00:05]} 49... Rh2 {[%clk 0:00:03.4]} 50. h6 {[%clk 0:00:03.5]} 50... Rxh3
{[%clk 0:00:03.2]} 51. Rh8 {[%clk 0:00:03.8]} 51... Ke3 {[%clk 0:00:01.9]} 52.
Kd1 {[%clk 0:00:03.6]} 52... Kf3 {[%clk 0:00:02.5]} 53. h7 {[%clk 0:00:03.3]}
53... Rh1+ {[%clk 0:00:03.4]} 54. Kc2 {[%clk 0:00:03.5]} 54... Rh2+ {[%clk
0:00:03.9]} 55. Kb3 {[%clk 0:00:03.8]} 55... Ng6 {[%clk 0:00:02.9]} 56. Rg8
{[%clk 0:00:03.7]} 56... Kg4 {[%clk 0:00:03.3]} 57. Rxg6+ {[%clk 0:00:03.6]}
57... Kf5 {[%clk 0:00:03.9]} 58. Rxb6 {[%clk 0:00:02.4]} 58... Rxh7 {[%clk
0:00:04.8]} 59. Rb5+ {[%clk 0:00:03.3]} 59... Ke6 {[%clk 0:00:04.6]} 60. Rxa5
{[%clk 0:00:04.2]} 60... Rb7+ {[%clk 0:00:04.3]} 61. Rb5 {[%clk 0:00:04.7]}
61... Kd6 {[%clk 0:00:05.2]} 62. Rxb7 {[%clk 0:00:04.6]} 1-0

[Event "*** SCC Grand Prix: Titled Tuesday Blitz"]
[Site "Chess.com"]
[Date "2020.09.29"]
[Round "2"]
[White "dpopadic"]
[Black "elcandado"]
[Result "0-1"]
[WhiteElo "2321"]
[BlackElo "2562"]
[TimeControl "180+1"]
[EndTime "10:18:26 PDT"]
[Termination "elcandado won on time"]

1. e4 {[%clk 0:03:00.9]} 1... d6 {[%clk 0:02:59.8]} 2. Nc3 {[%clk 0:02:59.9]}
2... Nf6 {[%clk 0:02:59.6]} 3. f4 {[%clk 0:02:59.8]} 3... c5 {[%clk 0:02:57.1]}
4. Nf3 {[%clk 0:02:59.8]} 4... Nc6 {[%clk 0:02:56.2]} 5. Bb5 {[%clk 0:02:59.3]}
5... e6 {[%clk 0:02:52]} 6. Bxc6+ {[%clk 0:02:58]} 6... bxc6 {[%clk 0:02:51.5]}
7. d3 {[%clk 0:02:58.9]} 7... Be7 {[%clk 0:02:50.6]} 8. O-O {[%clk 0:02:58.5]}
8... O-O {[%clk 0:02:50.9]} 9. e5 {[%clk 0:02:58.3]} 9... Nd5 {[%clk 0:02:48.4]}
10. Ne4 {[%clk 0:02:58.2]} 10... f5 {[%clk 0:02:18.9]} 11. Nxd6 {[%clk
0:02:39.7]} 11... Bxd6 {[%clk 0:02:18]} 12. exd6 {[%clk 0:02:39.7]} 12... Qxd6
{[%clk 0:02:18.3]} 13. Ne5 {[%clk 0:02:37.9]} 13... Ba6 {[%clk 0:02:13.8]} 14.
b3 {[%clk 0:02:20.3]} 14... Nc3 {[%clk 0:01:50.5]} 15. Qe1 {[%clk 0:02:18.4]}
15... Nb5 {[%clk 0:01:36.7]} 16. Kh1 {[%clk 0:02:07.7]} 16... Nd4 {[%clk
0:01:35.9]} 17. Qf2 {[%clk 0:02:06.7]} 17... Rf6 {[%clk 0:01:27.7]} 18. Ba3
{[%clk 0:02:04.8]} 18... Qd5 {[%clk 0:01:14.8]} 19. c3 {[%clk 0:01:50.1]} 19...
Nb5 {[%clk 0:00:56.7]} 20. c4 {[%clk 0:01:50]} 20... Qd8 {[%clk 0:00:47.4]} 21.
cxb5 {[%clk 0:01:49]} 21... Bxb5 {[%clk 0:00:48.3]} 22. Bxc5 {[%clk 0:01:47.8]}
22... Rh6 {[%clk 0:00:47.1]} 23. Rad1 {[%clk 0:01:36.3]} 23... a5 {[%clk
0:00:46]} 24. a4 {[%clk 0:01:34.5]} 24... Ba6 {[%clk 0:00:45.8]} 25. Nxc6 {[%clk
0:01:34]} 25... Qe8 {[%clk 0:00:33.5]} 26. Ne5 {[%clk 0:01:26.1]} 26... Bb7
{[%clk 0:00:31]} 27. Nf3 {[%clk 0:01:21.6]} 27... Qh5 {[%clk 0:00:26.2]} 28. h3
{[%clk 0:01:16]} 28... Ra6 {[%clk 0:00:13.3]} 29. Bd4 {[%clk 0:00:59.1]} 29...
e5 {[%clk 0:00:12.9]} 30. Bxe5 {[%clk 0:00:57.8]} 30... Rag6 {[%clk 0:00:13.2]}
31. Kh2 {[%clk 0:00:38.8]} 31... Qg4 {[%clk 0:00:11]} 32. Rd2 {[%clk 0:00:29.9]}
32... Rh5 {[%clk 0:00:10.8]} 33. Rc2 {[%clk 0:00:24.2]} 33... h6 {[%clk
0:00:08.6]} 34. Rc7 {[%clk 0:00:22.6]} 34... Bd5 {[%clk 0:00:08]} 35. Rxg7+
{[%clk 0:00:21]} 35... Rxg7 {[%clk 0:00:07.5]} 36. Bxg7 {[%clk 0:00:21]} 36...
Kxg7 {[%clk 0:00:08.1]} 37. Qd4+ {[%clk 0:00:20]} 37... Kg6 {[%clk 0:00:06.9]}
38. Qxd5 {[%clk 0:00:20]} 38... Qxf4+ {[%clk 0:00:07.2]} 39. Kg1 {[%clk
0:00:18.9]} 39... Qg3 {[%clk 0:00:07.8]} 40. Qe4 {[%clk 0:00:14.9]} 40... fxe4
{[%clk 0:00:07.3]} 41. dxe4 {[%clk 0:00:15]} 41... Qf4 {[%clk 0:00:05.8]} 42.
Rf2 {[%clk 0:00:13.9]} 42... Qe3 {[%clk 0:00:05.2]} 43. Kf1 {[%clk 0:00:13.6]}
43... Rc5 {[%clk 0:00:05.3]} 44. Ne1 {[%clk 0:00:13]} 44... Rc1 {[%clk
0:00:04.2]} 45. Re2 {[%clk 0:00:13.1]} 45... Qf4+ {[%clk 0:00:03.8]} 46. Kg1
{[%clk 0:00:11.9]} 46... Qg3 {[%clk 0:00:03.7]} 47. Kf1 {[%clk 0:00:11.4]} 47...
Qxb3 {[%clk 0:00:03.9]} 48. e5 {[%clk 0:00:11]} 48... Qe6 {[%clk 0:00:04.3]} 49.
Kf2 {[%clk 0:00:09.9]} 49... Kf7 {[%clk 0:00:03.9]} 50. Nf3 {[%clk 0:00:10]}
50... Ke7 {[%clk 0:00:03]} 51. Kg3 {[%clk 0:00:09.9]} 51... Qg8+ {[%clk
0:00:02.3]} 52. Kf2 {[%clk 0:00:09.4]} 52... Qc4 {[%clk 0:00:02.2]} 53. Kg3
{[%clk 0:00:08.9]} 53... Qc5 {[%clk 0:00:02.6]} 54. e6 {[%clk 0:00:07.4]} 54...
Rc2 {[%clk 0:00:02.9]} 55. Rxc2 {[%clk 0:00:05.5]} 55... Qxc2 {[%clk 0:00:03.8]}
56. h4 {[%clk 0:00:05]} 56... Qg6+ {[%clk 0:00:04.2]} 57. Kf2 {[%clk 0:00:04.3]}
57... h5 {[%clk 0:00:04.7]} 58. g3 {[%clk 0:00:04]} 58... Qc2+ {[%clk
0:00:05.1]} 59. Ke3 {[%clk 0:00:04.1]} 59... Qxa4 {[%clk 0:00:05.4]} 60. Ng5
{[%clk 0:00:01.8]} 60... Qb3+ {[%clk 0:00:05.4]} 61. Kf4 {[%clk 0:00:01.9]}
61... a4 {[%clk 0:00:06]} 62. Kf5 {[%clk 0:00:01.9]} 62... a3 {[%clk 0:00:06.3]}
63. Ne4 {[%clk 0:00:02]} 63... Qxe6+ {[%clk 0:00:06.1]} 0-1

[Event "*** SCC Grand Prix: Titled Tuesday Blitz"]
[Site "Chess.com"]
[Date "2020.09.29"]
[Round "2"]
[White "xberli"]
[Black "mishanick"]
[Result "0-1"]
[WhiteElo "2605"]
[BlackElo "3007"]
[TimeControl "180+1"]
[EndTime "10:18:28 PDT"]
[Termination "mishanick won by resignation"]

1. e4 {[%clk 0:03:00.9]} 1... c5 {[%clk 0:02:59.4]} 2. Nf3 {[%clk 0:03:01.1]}
2... d6 {[%clk 0:03:00]} 3. d4 {[%clk 0:03:01.6]} 3... cxd4 {[%clk 0:03:00.9]}
4. Nxd4 {[%clk 0:03:02.4]} 4... Nf6 {[%clk 0:02:58.8]} 5. Nc3 {[%clk 0:03:02.7]}
5... a6 {[%clk 0:02:50.9]} 6. Bg5 {[%clk 0:03:01.7]} 6... e6 {[%clk 0:02:50.5]}
7. f4 {[%clk 0:03:01.5]} 7... Qb6 {[%clk 0:02:51]} 8. Qd2 {[%clk 0:03:01.3]}
8... Qxb2 {[%clk 0:02:51.3]} 9. Rb1 {[%clk 0:03:01.4]} 9... Qa3 {[%clk
0:02:51.8]} 10. Be2 {[%clk 0:03:01.7]} 10... Nc6 {[%clk 0:02:48.4]} 11. Nxc6
{[%clk 0:03:00.9]} 11... bxc6 {[%clk 0:02:49.3]} 12. O-O {[%clk 0:02:59.9]}
12... Be7 {[%clk 0:02:43.4]} 13. f5 {[%clk 0:02:56.3]} 13... exf5 {[%clk
0:02:31.7]} 14. Rb3 {[%clk 0:02:30.5]} 14... Qc5+ {[%clk 0:02:12.7]} 15. Be3
{[%clk 0:02:27.7]} 15... Qa5 {[%clk 0:02:13]} 16. Bb6 {[%clk 0:02:21.2]} 16...
Qe5 {[%clk 0:02:11.2]} 17. Bd4 {[%clk 0:02:16]} 17... Qe6 {[%clk 0:02:11]} 18.
exf5 {[%clk 0:02:11.6]} 18... Qd7 {[%clk 0:02:10.3]} 19. Na4 {[%clk 0:01:36.5]}
19... Qc7 {[%clk 0:02:06.1]} 20. Bb6 {[%clk 0:01:27.8]} 20... Qd7 {[%clk
0:02:05.7]} 21. Bd4 {[%clk 0:01:27.5]} 21... Bd8 {[%clk 0:01:33.2]} 22. Nb6
{[%clk 0:01:18.2]} 22... Bxb6 {[%clk 0:01:32.5]} 23. Rxb6 {[%clk 0:01:18.6]}
23... Nd5 {[%clk 0:01:27.2]} 24. Rb3 {[%clk 0:01:17.1]} 24... f6 {[%clk
0:01:24.5]} 25. Bh5+ {[%clk 0:01:06.8]} 25... Kf8 {[%clk 0:01:19.6]} 26. Re1
{[%clk 0:01:00.4]} 26... Qd8 {[%clk 0:00:57.7]} 27. c4 {[%clk 0:00:54.7]} 27...
Nc7 {[%clk 0:00:50.1]} 28. Bb6 {[%clk 0:00:49.2]} 28... Bxf5 {[%clk 0:00:49.8]}
29. Re8+ {[%clk 0:00:40.8]} 29... Qxe8 {[%clk 0:00:44.7]} 30. Bxe8 {[%clk
0:00:40.6]} 30... Nxe8 {[%clk 0:00:45.6]} 31. Qf4 {[%clk 0:00:31.8]} 31... Bg6
{[%clk 0:00:36.9]} 32. Bc7 {[%clk 0:00:29.6]} 32... d5 {[%clk 0:00:23.7]} 33.
cxd5 {[%clk 0:00:21]} 33... cxd5 {[%clk 0:00:24.6]} 34. Re3 {[%clk 0:00:19.7]}
34... h5 {[%clk 0:00:22.6]} 35. Qb4+ {[%clk 0:00:17.1]} 35... Kg8 {[%clk
0:00:19.7]} 36. Re7 {[%clk 0:00:17.1]} 36... Nxc7 {[%clk 0:00:19.3]} 37. Rxc7
{[%clk 0:00:18]} 37... Kh7 {[%clk 0:00:19.7]} 38. Qe7 {[%clk 0:00:16.3]} 38...
Rhg8 {[%clk 0:00:20]} 39. Qxf6 {[%clk 0:00:15.3]} 39... Rae8 {[%clk 0:00:17.9]}
40. Qd4 {[%clk 0:00:13.1]} 40... Re2 {[%clk 0:00:16.9]} 41. h3 {[%clk 0:00:10]}
41... Be4 {[%clk 0:00:16]} 42. g4 {[%clk 0:00:07.8]} 42... hxg4 {[%clk
0:00:15.9]} 43. hxg4 {[%clk 0:00:08.7]} 43... Rg2+ {[%clk 0:00:16.2]} 44. Kf1
{[%clk 0:00:08.8]} 44... Rxg4 {[%clk 0:00:16.6]} 45. Qe5 {[%clk 0:00:08.2]}
45... Rf8+ {[%clk 0:00:16.4]} 46. Ke2 {[%clk 0:00:07.7]} 46... Rf5 {[%clk
0:00:14.8]} 47. Qe8 {[%clk 0:00:06.2]} 47... Rg2+ {[%clk 0:00:10.6]} 48. Ke3
{[%clk 0:00:06.3]} 48... Rg3+ {[%clk 0:00:09.7]} 49. Kd4 {[%clk 0:00:06.5]}
49... Rd3+ {[%clk 0:00:09.9]} 50. Kc5 {[%clk 0:00:06.7]} 50... Rc3+ {[%clk
0:00:10.3]} 51. Kb6 {[%clk 0:00:06.3]} 51... Rf6+ {[%clk 0:00:10.7]} 52. Kb7
{[%clk 0:00:05.8]} 52... Re3 {[%clk 0:00:07.1]} 53. Qh5+ {[%clk 0:00:04.7]}
53... Rh6 {[%clk 0:00:07.1]} 54. Qf7 {[%clk 0:00:04.7]} 54... d4+ {[%clk
0:00:06.5]} 55. Ka7 {[%clk 0:00:04.6]} 55... Rg3 {[%clk 0:00:06.7]} 56. Qf8
{[%clk 0:00:04.4]} 56... d3 {[%clk 0:00:06.6]} 57. Rc8 {[%clk 0:00:04.2]} 57...
d2 {[%clk 0:00:06.4]} 58. Qh8+ {[%clk 0:00:04.2]} 58... Kg6 {[%clk 0:00:07]} 59.
Qe8+ {[%clk 0:00:04.7]} 59... Kf5 {[%clk 0:00:06.4]} 60. Rc5+ {[%clk 0:00:04.9]}
60... Kf4 {[%clk 0:00:06.7]} 61. Qf7+ {[%clk 0:00:05]} 61... Ke3 {[%clk
0:00:06.4]} 62. Qc7 {[%clk 0:00:05.4]} 62... Rf3 {[%clk 0:00:05.3]} 63. Rc3+
{[%clk 0:00:06.3]} 63... Ke2 {[%clk 0:00:05.7]} 64. Rc2 {[%clk 0:00:05.1]} 64...
Bxc2 {[%clk 0:00:05.5]} 65. Qxc2 {[%clk 0:00:06]} 65... Rd3 {[%clk 0:00:05.7]}
66. a4 {[%clk 0:00:03.3]} 66... Rhd6 {[%clk 0:00:05.8]} 0-1

[Event "*** SCC Grand Prix: Titled Tuesday Blitz"]
[Site "Chess.com"]
[Date "2020.09.29"]
[Round "2"]
[White "GregShahade"]
[Black "maxip32"]
[Result "0-1"]
[WhiteElo "2615"]
[BlackElo "2362"]
[TimeControl "180+1"]
[EndTime "10:18:31 PDT"]
[Termination "maxip32 won by checkmate"]

1. e4 {[%clk 0:03:00.9]} 1... e5 {[%clk 0:02:58.3]} 2. Nf3 {[%clk 0:03:01]} 2...
Nf6 {[%clk 0:02:57.9]} 3. Nxe5 {[%clk 0:03:00.1]} 3... d6 {[%clk 0:02:58]} 4.
Nf3 {[%clk 0:03:00.8]} 4... Nxe4 {[%clk 0:02:58.1]} 5. Nc3 {[%clk 0:03:01.5]}
5... Nxc3 {[%clk 0:02:57.6]} 6. dxc3 {[%clk 0:03:02.4]} 6... Be7 {[%clk
0:02:57.9]} 7. Be3 {[%clk 0:03:02.5]} 7... Nc6 {[%clk 0:02:58.3]} 8. Qd2 {[%clk
0:03:02.8]} 8... O-O {[%clk 0:02:58.9]} 9. O-O-O {[%clk 0:03:03]} 9... Be6
{[%clk 0:02:59.5]} 10. Bd3 {[%clk 0:03:00.5]} 10... Qd7 {[%clk 0:02:44.6]} 11.
Kb1 {[%clk 0:02:50.8]} 11... Bf5 {[%clk 0:02:40.1]} 12. Nd4 {[%clk 0:02:39.7]}
12... Bxd3 {[%clk 0:02:38.8]} 13. Qxd3 {[%clk 0:02:37.9]} 13... Bf6 {[%clk
0:01:59.3]} 14. Rhe1 {[%clk 0:02:27.9]} 14... Rfe8 {[%clk 0:01:52.2]} 15. b3
{[%clk 0:02:16.3]} 15... Ne5 {[%clk 0:01:49.6]} 16. Qf5 {[%clk 0:02:07.8]} 16...
Qxf5 {[%clk 0:01:46.5]} 17. Nxf5 {[%clk 0:02:08.7]} 17... g6 {[%clk 0:01:43.1]}
18. Nd4 {[%clk 0:02:03.3]} 18... Kg7 {[%clk 0:01:36.1]} 19. f3 {[%clk
0:01:50.2]} 19... a6 {[%clk 0:01:35.1]} 20. Bf2 {[%clk 0:01:38.6]} 20... Nd7
{[%clk 0:01:29.6]} 21. Kb2 {[%clk 0:01:19.3]} 21... Kf8 {[%clk 0:01:23.7]} 22.
Be3 {[%clk 0:01:13.4]} 22... Kg7 {[%clk 0:01:22.6]} 23. Bf4 {[%clk 0:01:01.4]}
23... Be5 {[%clk 0:01:20.5]} 24. Bxe5+ {[%clk 0:00:58.6]} 24... Rxe5 {[%clk
0:01:18]} 25. Rxe5 {[%clk 0:00:57.9]} 25... Nxe5 {[%clk 0:01:16.5]} 26. c4
{[%clk 0:00:51.9]} 26... Re8 {[%clk 0:01:13.1]} 27. Kc3 {[%clk 0:00:52.2]} 27...
Nd7 {[%clk 0:01:08.6]} 28. Kd2 {[%clk 0:00:51]} 28... f5 {[%clk 0:00:58.5]} 29.
Ne2 {[%clk 0:00:39.1]} 29... g5 {[%clk 0:00:39]} 30. Nc3 {[%clk 0:00:38.9]}
30... Nf6 {[%clk 0:00:37.3]} 31. Rh1 {[%clk 0:00:32.8]} 31... Re5 {[%clk
0:00:32.4]} 32. h4 {[%clk 0:00:29.6]} 32... g4 {[%clk 0:00:32.2]} 33. Re1 {[%clk
0:00:26.4]} 33... gxf3 {[%clk 0:00:28.2]} 34. gxf3 {[%clk 0:00:26]} 34... Rxe1
{[%clk 0:00:27.8]} 35. Kxe1 {[%clk 0:00:26.8]} 35... Kg6 {[%clk 0:00:28.2]} 36.
Kf2 {[%clk 0:00:26.6]} 36... f4 {[%clk 0:00:25.2]} 37. Ne2 {[%clk 0:00:26.4]}
37... Kf5 {[%clk 0:00:20.6]} 38. Nd4+ {[%clk 0:00:26.7]} 38... Ke5 {[%clk
0:00:19.8]} 39. c3 {[%clk 0:00:27.3]} 39... Nh5 {[%clk 0:00:17.4]} 40. Ke2
{[%clk 0:00:26.7]} 40... Ng3+ {[%clk 0:00:17.6]} 41. Kd3 {[%clk 0:00:26.9]}
41... Nf1 {[%clk 0:00:14.3]} 42. Ne2 {[%clk 0:00:23.8]} 42... Ne3 {[%clk
0:00:13.4]} 43. b4 {[%clk 0:00:18.1]} 43... Ng2 {[%clk 0:00:13.1]} 44. h5 {[%clk
0:00:17.4]} 44... Ne1+ {[%clk 0:00:12.7]} 45. Kd2 {[%clk 0:00:13.6]} 45... Nxf3+
{[%clk 0:00:13.6]} 46. Kd3 {[%clk 0:00:14.1]} 46... Ng5 {[%clk 0:00:12]} 47. Nd4
{[%clk 0:00:14.4]} 47... c5 {[%clk 0:00:08.8]} 48. Nc2 {[%clk 0:00:14.6]} 48...
f3 {[%clk 0:00:07.6]} 49. Ke3 {[%clk 0:00:14.6]} 49... b6 {[%clk 0:00:08]} 50.
a4 {[%clk 0:00:14.2]} 50... Kf5 {[%clk 0:00:08.2]} 51. b5 {[%clk 0:00:13]} 51...
a5 {[%clk 0:00:08.4]} 52. Ne1 {[%clk 0:00:13.1]} 52... Kg4 {[%clk 0:00:08.6]}
53. Nd3 {[%clk 0:00:12.7]} 53... Kg3 {[%clk 0:00:08.7]} 54. Nf2 {[%clk
0:00:12.9]} 54... h6 {[%clk 0:00:06.8]} 55. Nd3 {[%clk 0:00:11.1]} 55... Nh3
{[%clk 0:00:06.2]} 56. Kd2 {[%clk 0:00:08]} 56... f2 {[%clk 0:00:06.3]} 57. Ke2
{[%clk 0:00:08.6]} 57... Kg2 {[%clk 0:00:06.3]} 58. Nxf2 {[%clk 0:00:09.3]}
58... Nxf2 {[%clk 0:00:06.6]} 59. Ke3 {[%clk 0:00:10.2]} 59... Kg3 {[%clk
0:00:07.1]} 60. Ke2 {[%clk 0:00:09.5]} 60... Ne4 {[%clk 0:00:07]} 61. Kd3 {[%clk
0:00:10.4]} 61... Nf6 {[%clk 0:00:07.2]} 62. Ke3 {[%clk 0:00:10.6]} 62... Kg4
{[%clk 0:00:07.3]} 63. Kd3 {[%clk 0:00:10.6]} 63... Kf4 {[%clk 0:00:07.6]} 64.
Ke2 {[%clk 0:00:10.6]} 64... Nxh5 {[%clk 0:00:08.3]} 65. Kd3 {[%clk 0:00:11]}
65... Nf6 {[%clk 0:00:09.2]} 66. Ke2 {[%clk 0:00:11.2]} 66... Ne4 {[%clk
0:00:09.9]} 67. Kd3 {[%clk 0:00:11.3]} 67... h5 {[%clk 0:00:10.4]} 68. Ke2
{[%clk 0:00:11.3]} 68... h4 {[%clk 0:00:11.3]} 69. Kd3 {[%clk 0:00:12.2]} 69...
h3 {[%clk 0:00:11.7]} 70. Kc2 {[%clk 0:00:13.1]} 70... h2 {[%clk 0:00:12.1]} 71.
Kb3 {[%clk 0:00:14]} 71... h1=Q {[%clk 0:00:12.3]} 72. Ka3 {[%clk 0:00:14.9]}
72... Qa1+ {[%clk 0:00:12.1]} 73. Kb3 {[%clk 0:00:15.8]} 73... Qxc3+ {[%clk
0:00:12.7]} 74. Ka2 {[%clk 0:00:15.8]} 74... Qc2+ {[%clk 0:00:12.6]} 75. Ka3
{[%clk 0:00:16.7]} 75... Qc3+ {[%clk 0:00:12.6]} 76. Ka2 {[%clk 0:00:17.5]}
76... Qxc4+ {[%clk 0:00:13.2]} 77. Ka3 {[%clk 0:00:17.9]} 77... Qb4+ {[%clk
0:00:13.4]} 78. Ka2 {[%clk 0:00:18.7]} 78... Nc3+ {[%clk 0:00:13.7]} 79. Ka1
{[%clk 0:00:19.5]} 79... Qb1# {[%clk 0:00:14.2]} 0-1